bitfinex-derivatives/quotes_SOLF0:USTF0_20250609
["timestamp","ask_amount","ask_price","bid_price","bid_amount"]
[1749438490887,6.6011,151.42,151.39,44.64826]
[1749438491088,12.71666481,151.42,151.4,3.03211547]
[1749438491282,6.6014,151.41,151.39,0.04616]
[1749438491488,6.6014,151.41,151.4,3.02920924]
[1749438491991,12.71696481,151.41,151.39,0.04616]
[1749438493589,6.11556481,151.42,151.4,9.63040184]
[1749438493782,6.11556481,151.42,151.4,6.6017]
[1749438495989,5.54196083,151.41,151.4,6.6017]
[1749438496286,5.54196083,151.41,151.4,9.64955899]
[1749438496990,5.54196083,151.41,151.4,6.6017]
[1749438497191,5.54196083,151.41,151.4,9.65049634]
[1749438497392,5.54196083,151.41,151.4,9.65050716]
[1749438497597,5.54196083,151.41,151.4,3.04880716]
[1749438497894,5.54196083,151.41,151.39,6.64816]
[1749438498091,5.53858166,151.4,151.39,6.64816]
[1749438498288,5.53858166,151.4,151.39,9.69696101]
[1749438498495,5.53858166,151.4,151.39,6.64816]
[1749438498695,5.53858166,151.4,151.39,9.69698187]
[1749438498896,5.53858166,151.4,151.39,9.69691851]
[1749438499097,5.53858166,151.4,151.39,9.69695045]
[1749438499596,5.53858166,151.4,151.39,6.64816]
[1749438499796,5.53858166,151.4,151.39,9.69696075]
[1749438499995,5.53858166,151.4,151.39,3.09496075]
[1749438500193,11.65414647,151.4,151.24,13.2171]
[1749438500393,5.53858166,151.39,151.29,6.5755]
[1749438500597,5.53858166,151.38,151.32,4.27355683]
[1749438500796,5.53858166,151.37,151.32,42.27355683]
[1749438501003,5.53858166,151.36,151.34,10.87775683]
[1749438501300,5.53332065,151.35,151.34,4.27355683]
[1749438501495,5.53358383,151.35,151.34,4.27355683]
[1749438502700,5.53358383,151.35,151.33,10.9021267]
[1749438502900,5.61442076,151.34,151.33,10.9021267]
[1749438503100,5.6145455,151.34,151.33,10.9021267]
[1749438503294,0.04223492,151.37,151.33,10.9021267]
[1749438503598,5.60926182,151.36,151.33,4.2975267]
[1749438503796,0.04223492,151.37,151.33,4.2975267]
[1749438503999,5.60016675,151.36,151.33,4.2975267]
[1749438504294,5.60016675,151.35,151.33,0.02396987]
[1749438504499,0.04223492,151.37,151.33,0.02396987]
[1749438504703,5.59798466,151.36,151.33,0.02396987]
[1749438504904,5.59798466,151.35,151.33,0.02396987]
[1749438505094,0.04223492,151.37,151.33,0.02396987]
[1749438505396,5.59755857,151.36,151.33,0.02396987]
[1749438505596,5.59755857,151.35,151.33,0.02396987]
[1749438505799,6.6036,151.36,151.33,0.02396987]
[1749438505998,5.59552155,151.35,151.33,0.02396987]
[1749438506200,6.64553492,151.37,151.33,0.02396987]
[1749438506401,5.59578048,151.36,151.33,0.02396987]
[1749438506600,5.59578048,151.35,151.33,0.02396987]
[1749438506790,6.6035,151.36,151.33,0.02396987]
[1749438507000,5.59404608,151.35,151.33,0.02396987]
[1749438507193,0.04223492,151.37,151.33,0.02396987]
[1749438507396,5.59389005,151.36,151.33,0.02396987]
[1749438507598,5.59389005,151.35,151.33,0.02396987]
[1749438507795,6.64573492,151.37,151.33,0.02396987]
[1749438508002,5.59213253,151.36,151.33,0.02396987]
[1749438508201,5.59213253,151.35,151.33,6.62876987]
[1749438508503,6.6035,151.36,151.33,0.02396987]
[1749438508802,0.04223492,151.37,151.33,0.02396987]
[1749438508803,5.58547896,151.35,151.33,0.02396987]
[1749438508994,0.04223492,151.37,151.33,0.02396987]
[1749438509197,5.58328818,151.36,151.33,0.02396987]
[1749438509397,5.58328818,151.35,151.33,0.02396987]
[1749438509599,0.04223492,151.37,151.33,0.02396987]
[1749438509600,0.04223492,151.37,151.34,6.6044]
[1749438509801,5.58183081,151.36,151.34,6.6044]
[1749438510094,5.58183081,151.35,151.34,6.6044]
[1749438510505,5.58183081,151.36,151.34,6.6044]
[1749438510700,5.58183081,151.35,151.34,6.6044]
[1749438510900,5.58183081,151.36,151.35,6.6039]
[1749438515004,5.58183081,151.36,151.34,6.6042]
[1749438515214,5.58183081,151.36,151.33,0.02396987]
[1749438515613,5.58183081,151.36,151.34,6.604]
[1749438516410,5.61603911,151.37,151.33,0.02396987]
[1749438516616,0.04223492,151.37,151.34,2.97485387]
[1749438516812,5.61603911,151.37,151.34,2.97485387]
[1749438517013,0.04223492,151.37,151.34,6.6042]
[1749438517315,9.88959594,151.37,151.33,0.02396987]
[1749438517513,5.57380419,151.36,151.33,0.02396987]
[1749438517817,5.57380419,151.35,151.33,0.02396987]
[1749438518222,0.04223492,151.37,151.33,4.2975267]
[1749438518510,0.04223492,151.37,151.34,2.97412754]
[1749438518714,0.04223492,151.37,151.33,4.2975267]
[1749438518912,5.61822717,151.37,151.34,2.97412319]
[1749438519116,5.57599225,151.36,151.33,0.02396987]
[1749438519316,6.6036,151.36,151.33,0.02396987]
[1749438519923,5.57460682,151.35,151.33,0.02396987]
[1749438520919,5.57460682,151.36,151.33,0.02396987]
[1749438521217,5.57437512,151.35,151.33,0.02396987]
[1749438521424,5.57437512,151.35,151.33,6.62866987]
[1749438521724,5.57462929,151.35,151.33,6.62866987]
[1749438522617,5.57415792,151.35,151.33,6.62866987]
[1749438524121,5.57415792,151.35,151.33,0.02396987]
[1749438524521,5.57415792,151.35,151.33,6.62856987]
[1749438525725,6.6036,151.36,151.33,6.62856987]
[1749438526736,5.57451628,151.35,151.33,6.62856987]
[1749438527230,6.6036,151.36,151.33,6.62856987]
[1749438527729,5.57455168,151.35,151.33,0.02396987]
[1749438528027,0.04223492,151.37,151.33,0.02396987]
[1749438528220,5.57464664,151.36,151.34,4.27355683]
[1749438528420,0.04223492,151.37,151.34,4.27355683]
[1749438528619,5.568065,151.36,151.34,10.87785683]
[1749438528921,0.04223492,151.37,151.34,10.87785683]
[1749438529122,5.56826216,151.36,151.34,10.87785683]
[1749438529322,0.04223492,151.37,151.34,10.87785683]
[1749438529624,5.56838788,151.36,151.35,6.6039]
[1749438530027,0.04223492,151.37,151.35,6.6039]
[1749438530617,0.04223492,151.37,151.36,6.6035]
[1749438530821,5.61376924,151.37,151.36,6.6035]
[1749438531123,5.61376924,151.37,151.36,43.6035]
[1749438531425,0.04223492,151.37,151.36,47.87705683]
[1749438531626,5.61376924,151.37,151.36,47.87705683]
[1749438532226,0.04223492,151.37,151.36,47.87705683]
[1749438532625,5.61376924,151.37,151.36,47.87705683]
[1749438532827,0.04223492,151.37,151.36,47.87705683]
[1749438533027,0.04223492,151.37,151.36,50.85144661]
[1749438533226,0.04223492,151.37,151.36,47.87705683]
[1749438533531,0.04223492,151.37,151.36,50.85140399]
[1749438533829,0.04223492,151.37,151.36,50.85134058]
[1749438534031,12.97355481,151.43,151.36,41.27355683]
[1749438534324,5.58829935,151.42,151.39,4.27355683]
[1749438534524,5.58829935,151.41,151.39,4.27355683]
[1749438534734,5.58829935,151.4,151.36,37.0]
[1749438535027,5.58829935,151.39,151.38,4.27355683]
[1749438535925,0.04600681,151.4,151.38,4.27355683]
[1749438536128,0.04600681,151.4,151.38,10.87585683]
[1749438536330,5.58709251,151.39,151.38,10.87585683]
[1749438537032,0.04600681,151.4,151.38,10.87585683]
[1749438537528,0.04600681,151.4,151.39,6.6022]
[1749438537724,5.63275606,151.4,151.39,6.6022]
[1749438538529,5.63275606,151.4,151.38,10.87605683]
[1749438538726,0.04600681,151.4,151.38,10.87605683]
[1749438539233,5.58292487,151.39,151.36,43.64747459]
[1749438539528,0.04600681,151.4,151.36,47.92103142]
[1749438539724,5.58312012,151.39,151.36,47.92103142]
[1749438539929,0.04600681,151.4,151.37,6.603]
[1749438540129,5.5832055,151.39,151.38,4.27355683]
[1749438540328,5.58323805,151.39,151.38,10.87615683]
[1749438540521,0.04600681,151.4,151.38,4.27355683]
[1749438540926,0.25739,151.43,151.42,6.6009]
[1749438541125,5.84162117,151.43,151.42,10.87445683]
[1749438541327,0.25739,151.43,151.42,10.87445683]
[1749438542230,0.04898761,151.44,151.43,6.6004]
[1749438542728,5.58253186,151.47,151.46,6.5991]
[1749438542933,5.58253186,151.47,151.46,10.87265683]
[1749438543629,5.58253186,151.49,151.46,10.87265683]
[1749438543831,5.58253186,151.48,151.46,10.9184183]
[1749438544131,0.04471244,151.49,151.46,10.9184183]
[1749438544330,5.58997102,151.48,151.46,0.04576147]
[1749438544634,5.58997102,151.47,151.46,0.04576147]
[1749438545037,5.58997102,151.48,151.46,4.3193183]
[1749438545237,0.04471244,151.49,151.46,4.3193183]
[1749438545533,5.58659501,151.48,151.46,4.3193183]
[1749438546032,6.5984,151.48,151.46,0.04576147]
[1749438546333,12.17869777,151.48,151.46,0.04576147]
[1749438546534,6.5984,151.48,151.46,0.04576147]
[1749438547331,6.64261244,151.49,151.46,0.04576147]
[1749438547533,6.64261244,151.49,151.46,4.3193183]
[1749438548734,0.04471244,151.49,151.46,0.04576147]
[1749438549130,6.64281244,151.49,151.46,0.04576147]
[1749438549435,12.21636935,151.49,151.46,0.04576147]
[1749438549634,6.64281244,151.49,151.46,6.64486147]
[1749438550231,6.5983,151.48,151.46,6.64486147]
[1749438550639,0.04471244,151.49,151.46,6.64486147]
[1749438550834,6.64271244,151.49,151.46,6.64486147]
[1749438552336,6.5983,151.48,151.46,0.04576147]
[1749438552727,0.04471244,151.49,151.46,0.04576147]
[1749438553136,0.04471244,151.49,151.46,4.3193183]
[1749438553339,0.04471244,151.49,151.47,6.5984]
[1749438553738,0.04471244,151.49,151.46,10.9182183]
[1749438553939,6.64261244,151.49,151.46,10.9182183]
[1749438555736,0.04471244,151.49,151.46,0.04576147]
[1749438556537,6.5987,151.47,151.46,0.04576147]
[1749438558247,6.6001,151.44,151.42,40.53355683]
[1749438558946,6.5997,151.45,151.42,40.53355683]
[1749438559246,0.04733594,151.45,151.42,40.58140023]
[1749438560039,0.04733594,151.45,151.43,6.6004]
[1749438562550,0.04733594,151.45,151.42,40.58140023]
[1749438562551,0.04733594,151.45,151.44,10.87355683]
[1749438566856,0.04733594,151.45,151.42,40.58140023]
[1749438567151,0.04733594,151.45,151.42,47.18220023]
[1749438567652,0.04733594,151.45,151.42,40.58140023]
[1749438567947,0.04733594,151.45,151.42,47.18210023]
[1749438568753,0.04733594,151.45,151.43,6.6004]
[1749438573550,0.04733594,151.45,151.42,40.58140023]
[1749438574053,0.04733594,151.45,151.42,42.9086434]
[1749438574255,0.04733594,151.45,151.42,36.3078434]
[1749438574553,5.580789,151.44,151.42,0.0478434]
[1749438574754,12.181189,151.43,151.42,0.0478434]
[1749438577959,18.23909812,151.43,151.42,0.0478434]
[1749438580663,12.181189,151.43,151.42,0.0478434]
[1749438580860,18.23909812,151.43,151.42,0.0478434]
[1749438581367,12.181189,151.43,151.42,0.0478434]
[1749438581567,18.23909812,151.43,151.42,0.0478434]
[1749438582568,6.6017,151.4,151.39,35.64]
[1749438582767,5.580789,151.4,151.37,4.27355683]
[1749438582973,6.05790912,151.43,151.37,4.27355683]
[1749438583264,5.56779156,151.42,151.37,4.27355683]
[1749438583471,5.56779156,151.41,151.37,4.27355683]
[1749438583668,5.56779156,151.4,151.37,4.3178894]
[1749438583868,6.6022,151.39,151.37,4.3178894]
[1749438584071,5.56732632,151.4,151.37,10.9208894]
[1749438584264,0.05020685,151.41,151.37,10.9208894]
[1749438584464,12.16422894,151.4,151.37,4.3178894]
[1749438584665,6.6019,151.4,151.37,4.3178894]
[1749438585372,6.65170685,151.41,151.38,6.6026]
[1749438585571,5.56205725,151.4,151.38,6.6026]
[1749438585766,6.65170685,151.41,151.38,6.6026]
[1749438585972,0.05020685,151.41,151.39,4.27355683]
[1749438586173,0.05020685,151.41,151.37,0.04433257]
[1749438586375,0.05020685,151.41,151.39,4.27355683]
[1749438586770,0.05020685,151.41,151.4,42.2617]
[1749438588669,5.56355286,151.45,151.4,35.66]
[1749438588872,12.16385286,151.44,151.4,39.93355683]
[1749438589074,5.56433698,151.43,151.4,46.53505683]
[1749438589275,6.6003,151.44,151.4,46.53505683]
[1749438589577,5.56449585,151.43,151.4,46.58076089]
[1749438589774,6.65057607,151.44,151.4,46.58076089]
[1749438589976,5.56417479,151.43,151.4,46.58076089]
[1749438590174,6.65057607,151.44,151.4,46.58076089]
[1749438590368,5.56418604,151.43,151.4,46.58076089]
[1749438590574,6.65057607,151.44,151.4,46.58076089]
[1749438590775,5.56443581,151.43,151.4,46.58076089]
[1749438590980,6.65057607,151.44,151.4,46.58076089]
[1749438591281,5.56443581,151.43,151.4,46.58076089]
[1749438591575,6.65057607,151.44,151.4,46.58076089]
[1749438591779,5.56477689,151.43,151.41,6.6012]
[1749438591978,6.65057607,151.44,151.41,6.6012]
[1749438592181,5.56548371,151.43,151.41,6.6012]
[1749438592382,6.65057607,151.44,151.41,6.6012]
[1749438592574,0.05027607,151.44,151.42,6.6007]
[1749438593482,0.05027607,151.44,151.4,39.97926089]
[1749438594081,0.05027607,151.44,151.41,6.6011]
[1749438594281,0.05027607,151.44,151.4,39.97926089]
[1749438594489,0.05027607,151.44,151.4,35.70570406]
[1749438594780,5.57723495,151.43,151.4,39.97926089]
[1749438594983,6.65027607,151.44,151.4,39.97926089]
[1749438595186,5.57731899,151.43,151.4,10.92076089]
[1749438595482,6.65027607,151.44,151.4,41.72720406]
[1749438595684,5.57786512,151.43,151.4,41.72720406]
[1749438595983,6.65027607,151.44,151.4,41.72720406]
[1749438596185,5.57770392,151.43,151.4,6.64720406]
[1749438596483,0.05027607,151.44,151.41,6.6012]
[1749438596782,5.5784334,151.43,151.41,6.6012]
[1749438596988,6.6006,151.43,151.4,35.12570406]
[1749438597482,0.05027607,151.44,151.4,35.12570406]
[1749438597483,6.6011,151.42,151.4,35.12570406]
[1749438597679,5.57845897,151.41,151.4,35.12570406]
[1749438597982,5.57877054,151.43,151.4,35.12570406]
[1749438598188,5.57877054,151.42,151.4,35.12570406]
[1749438598384,5.5790337,151.43,151.41,4.27355683]
[1749438598585,0.05027607,151.44,151.41,4.27355683]
[1749438598785,5.57951753,151.43,151.41,4.27355683]
[1749438598986,0.05027607,151.44,151.42,6.6005]
[1749438599175,5.57923312,151.43,151.42,6.6005]
[1749438599376,0.05027607,151.44,151.41,4.27355683]
[1749438599586,5.58008862,151.43,151.42,6.6009]
[1749438600383,5.58008862,151.43,151.41,10.87465683]
[1749438600582,0.05027607,151.44,151.4,35.12570406]
[1749438600885,5.58045578,151.43,151.4,0.04570406]
[1749438601081,5.58045578,151.42,151.4,0.04570406]
[1749438601286,5.58045578,151.41,151.4,0.04570406]
[1749438601477,5.58045578,151.41,151.4,6.64740406]
[1749438601683,5.58045578,151.41,151.4,0.04570406]
[1749438602182,6.6008,151.43,151.4,0.04570406]
[1749438602485,5.57503487,151.42,151.4,0.04570406]
[1749438602688,6.6008,151.43,151.4,6.64740406]
[1749438602888,5.57495247,151.42,151.4,6.64740406]
[1749438603091,6.6008,151.43,151.4,0.04570406]
[1749438603279,5.5720394,151.42,151.4,0.04570406]
[1749438603480,6.6008,151.43,151.4,0.04570406]
[1749438603688,5.5711468,151.42,151.4,0.04570406]
[1749438603890,6.6008,151.43,151.4,6.64740406]
[1749438604091,5.57114522,151.42,151.4,6.64740406]
[1749438604294,6.6008,151.43,151.4,6.64740406]
[1749438604491,5.57095869,151.42,151.4,6.64740406]
[1749438604689,6.6008,151.43,151.4,6.64740406]
[1749438604890,5.57100133,151.42,151.4,6.64740406]
[1749438605091,6.6008,151.43,151.4,6.64740406]
[1749438605290,5.57100133,151.42,151.4,6.64740406]
[1749438605588,6.6008,151.43,151.4,6.64740406]
[1749438605787,5.5713153,151.42,151.4,6.64740406]
[1749438605990,6.6008,151.43,151.4,6.64740406]
[1749438606195,5.5713153,151.42,151.4,6.64740406]
[1749438606389,5.57101918,151.41,151.4,6.64740406]
[1749438606889,5.57101918,151.41,151.4,0.04570406]
[1749438607591,12.17231918,151.41,151.4,0.04570406]
[1749438613098,6.6029,151.38,151.36,35.1]
[1749438613296,5.57101918,151.37,151.36,35.1]
[1749438613694,5.57101918,151.37,151.36,41.7035]
[1749438613894,6.05790912,151.41,151.36,41.7035]
[1749438614096,5.60875341,151.4,151.36,41.74593091]
[1749438614296,5.5642931,151.39,151.36,41.74593091]
[1749438614497,0.04446031,151.4,151.36,41.74593091]
[1749438614498,5.5642931,151.38,151.36,41.74593091]
[1749438614697,0.04446031,151.4,151.36,41.74593091]
[1749438615001,5.55253122,151.39,151.36,41.74593091]
[1749438615201,5.55253122,151.38,151.36,41.74593091]
[1749438615502,0.04446031,151.4,151.36,41.74593091]
[1749438615699,12.1551185,151.39,151.36,41.74593091]
[1749438615903,5.5529185,151.38,151.36,41.74593091]
[1749438616104,6.6022,151.39,151.37,6.603]
[1749438616305,5.55248758,151.38,151.36,35.14243091]
[1749438616499,5.55248758,151.37,151.36,35.14243091]
[1749438617404,5.55248758,151.37,151.36,41.74563091]
[1749438617600,0.04446031,151.4,151.36,35.14243091]
[1749438617903,5.54631145,151.39,151.36,41.74573091]
[1749438618106,5.54631145,151.38,151.36,46.01928774]
[1749438618299,0.04446031,151.4,151.36,39.41598774]
[1749438618603,5.54054944,151.39,151.37,6.6027]
[1749438618804,5.54054944,151.38,151.37,6.6027]
[1749438619002,0.04446031,151.4,151.38,4.27355683]
[1749438619204,5.54229686,151.39,151.38,4.27355683]
[1749438619695,0.04446031,151.4,151.38,10.87575683]
[1749438620905,0.04446031,151.4,151.39,6.6022]
[1749438621100,5.58681403,151.4,151.39,9.57756372]
[1749438621406,5.58681403,151.4,151.39,9.57756346]
[1749438621703,0.04446031,151.4,151.39,6.6022]
[1749438622105,5.58679249,151.4,151.39,9.57786032]
[1749438622307,5.58679249,151.4,151.39,6.6022]
[1749438622502,5.58679249,151.4,151.38,10.87605683]
[1749438622806,0.04446031,151.4,151.39,2.97578719]
[1749438623108,5.58815389,151.4,151.39,9.57798719]
[1749438623410,5.58815389,151.4,151.39,2.97550185]
[1749438623608,5.58815389,151.4,151.39,2.97550628]
[1749438623900,5.59321669,151.4,151.38,4.27355683]
[1749438624105,5.54875638,151.39,151.36,39.41598774]
[1749438624310,5.54875638,151.38,151.37,9.57871335]
[1749438624608,5.54875638,151.38,151.37,9.57871361]
[1749438625008,5.54875638,151.38,151.37,9.57854066]
[1749438625309,5.54875638,151.38,151.36,46.01928774]
[1749438625611,0.04446031,151.4,151.37,2.97549863]
[1749438625906,0.04446031,151.4,151.37,9.57839863]
[1749438625907,5.54707988,151.39,151.37,9.57839863]
[1749438626103,5.54707988,151.38,151.37,6.6029]
[1749438626499,5.54707988,151.38,151.36,46.01918774]
[1749438626703,6.64626031,151.4,151.36,46.01918774]
[1749438626907,5.54680965,151.39,151.36,46.01918774]
[1749438627101,5.54680965,151.38,151.36,46.01918774]
[1749438627313,6.6022,151.39,151.36,46.01918774]
[1749438627611,5.54665744,151.38,151.36,46.01918774]
[1749438627812,5.54665744,151.37,151.36,35.14243091]
[1749438628712,5.54665744,151.37,151.36,41.74593091]
[1749438629314,5.54665744,151.37,151.36,46.01948774]
[1749438630214,5.54665744,151.37,151.36,48.99351617]
[1749438630413,5.54665744,151.37,151.36,48.99357984]
[1749438631215,5.54665744,151.37,151.36,48.99440143]
[1749438631713,5.54665744,151.37,151.36,46.01948774]
[1749438632404,6.64636031,151.4,151.36,46.01948774]
[1749438632714,5.53601511,151.39,151.36,46.01948774]
[1749438632914,5.53601511,151.38,151.36,46.01948774]
[1749438633112,5.53601511,151.37,151.36,46.01948774]
[1749438633613,5.53601511,151.37,151.36,48.99361608]
[1749438633819,5.53601511,151.37,151.36,46.01948774]
[1749438634019,5.53601511,151.37,151.36,48.99365011]
[1749438634415,0.04446031,151.4,151.38,6.6025]
[1749438634710,5.53000985,151.39,151.38,10.87605683]
[1749438635812,0.04446031,151.4,151.39,6.6022]
[1749438636017,5.57724991,151.4,151.39,6.6022]
[1749438637413,0.04446031,151.4,151.36,35.14243091]
[1749438637717,0.04446031,151.4,151.37,4.27355683]
[1749438637718,5.53394148,151.39,151.37,4.27355683]
[1749438637920,5.53394148,151.38,151.37,10.87655683]
[1749438638112,0.04446031,151.4,151.37,4.27355683]
[1749438638312,5.54483198,151.39,151.37,4.27355683]
[1749438638508,0.04446031,151.4,151.37,4.27355683]
[1749438638713,5.54558943,151.39,151.38,6.6026]
[1749438639114,0.04446031,151.4,151.38,6.6026]
[1749438639419,5.54707698,151.39,151.38,6.6026]
[1749438641515,5.54707698,151.39,151.38,10.87615683]
[1749438645015,5.55244309,151.39,151.36,39.41598774]
[1749438645320,0.04446031,151.4,151.38,4.27355683]
[1749438645625,0.04446031,151.4,151.39,6.6022]
[1749438645824,5.59450161,151.4,151.39,6.6022]
[1749438648929,0.04446031,151.4,151.39,6.6022]
[1749438649319,5.59700834,151.4,151.39,6.6022]
[1749438650628,0.04446031,151.4,151.39,6.6022]
[1749438650836,0.04446031,151.4,151.39,41.2822]
[1749438650837,5.59626905,151.4,151.39,41.2822]
[1749438651326,0.04446031,151.4,151.39,41.2822]
[1749438651525,5.59613632,151.4,151.39,34.68]
[1749438652533,5.59613632,151.4,151.36,38.99598774]
[1749438652736,5.55167601,151.39,151.36,45.59948774]
[1749438652935,5.55167601,151.38,151.36,45.59948774]
[1749438653233,6.64646031,151.4,151.36,45.59948774]
[1749438653438,5.55082613,151.39,151.36,45.59948774]
[1749438653633,5.55082613,151.38,151.36,41.32593091]
[1749438653832,6.64646031,151.4,151.37,4.27355683]
[1749438654028,5.54833042,151.39,151.36,38.99598774]
[1749438654232,5.54833042,151.38,151.36,38.99598774]
[1749438654434,5.54833042,151.37,151.36,38.99598774]
[1749438654934,5.54833042,151.37,151.36,45.59948774]
[1749438656437,5.54833042,151.37,151.36,38.99598774]
[1749438657538,5.54833042,151.37,151.36,45.59948774]
[1749438657837,6.64646031,151.4,151.36,45.59948774]
[1749438658038,5.54161691,151.39,151.36,45.59948774]
[1749438658240,6.64646031,151.4,151.36,45.59948774]
[1749438658241,5.54161691,151.38,151.36,45.59948774]
[1749438658440,5.54161691,151.37,151.36,45.59948774]
[1749438658745,5.54161691,151.37,151.36,38.99598774]
[1749438659239,5.54161691,151.37,151.36,45.59948774]
[1749438659635,6.64636031,151.4,151.36,45.59948774]
[1749438659828,5.54126347,151.39,151.37,6.603]
[1749438660035,5.54126347,151.38,151.37,6.603]
[1749438669547,5.54126347,151.38,151.37,10.87655683]
[1749438671248,5.54126347,151.38,151.37,9.34329104]
[1749438676251,0.04446031,151.4,151.39,9.34249104]
[1749438676654,0.04446031,151.4,151.39,6.6022]
[1749438676851,0.04446031,151.4,151.39,9.34249104]
[1749438683562,0.04446031,151.4,151.39,43.78249104]
[1749438703475,5.57509246,151.4,151.39,43.78249104]
[1749438703973,0.04446031,151.4,151.39,43.78249104]
[1749438704273,5.57551411,151.4,151.39,43.78249104]
[1749438705469,5.57551411,151.4,151.39,41.0422]
[1749438705672,5.57551411,151.4,151.37,6.6028]
[1749438705868,5.5310538,151.39,151.38,2.74029104]
[1749438707873,5.5310538,151.39,151.38,9.34289104]
[1749438708075,5.5310538,151.39,151.38,6.6026]
[1749438708276,5.5310538,151.39,151.38,9.34289104]
[1749438712571,0.04446031,151.4,151.39,6.6022]
[1749438712777,5.56535064,151.4,151.39,9.34249104]
[1749438713879,5.56535064,151.4,151.39,43.42249104]
[1749438721181,5.57419892,151.4,151.39,43.42249104]
[1749438721589,0.04446031,151.4,151.39,43.42249104]
[1749438724089,5.57603344,151.4,151.39,43.42249104]
[1749438724986,5.57603344,151.4,151.39,40.6822]
[1749438725188,5.57603344,151.4,151.39,34.08]
[1749438726592,12.17773344,151.4,151.39,34.08]
[1749438726987,5.57603344,151.4,151.39,34.08]
[1749438728090,5.57603344,151.4,151.37,2.74029104]
[1749438728091,5.57603344,151.4,151.38,6.6025]
[1749438728294,5.53157313,151.39,151.38,9.34279104]
[1749438728591,5.53157313,151.39,151.38,2.74029104]
[1749438731889,5.53157313,151.39,151.37,9.34319104]
[1749438732095,5.53157313,151.38,151.37,9.34319104]
[1749438735695,0.04446031,151.4,151.38,6.6025]
[1749438735895,0.04446031,151.4,151.39,2.74029104]
[1749438736095,5.5650559,151.4,151.39,2.74029104]
[1749438740398,5.5650559,151.4,151.39,9.34249104]
[1749438740895,0.04446031,151.4,151.39,9.34249104]
[1749438741597,5.56927834,151.4,151.39,9.34249104]
[1749438742498,5.56927834,151.4,151.38,43.42269104]
[1749438742699,5.52481803,151.39,151.38,43.42269104]
[1749438743198,0.04446031,151.4,151.38,43.42269104]
[1749438743398,5.52499137,151.39,151.38,43.42269104]
[1749438744600,5.5281762,151.39,151.38,43.42269104]
[1749438746495,0.04446031,151.4,151.39,6.6022]
[1749438746700,5.56555075,151.4,151.39,9.34249104]
[1749438751198,5.57418778,151.4,151.39,9.34249104]
[1749438751602,5.57418969,151.4,151.39,9.34249104]
[1749438751804,5.57418813,151.4,151.39,9.34249104]
[1749438752004,0.04446031,151.4,151.39,9.34249104]
[1749438753813,5.57580319,151.4,151.39,9.34249104]
[1749438758111,5.58363408,151.4,151.39,9.34249104]
[1749438758413,0.04446031,151.4,151.39,9.34249104]
[1749438758615,5.58353047,151.4,151.39,9.34249104]
[1749438759008,0.04446031,151.4,151.39,9.34249104]
[1749438759610,6.11243338,151.44,151.39,2.74029104]
[1749438759815,6.11243338,151.48,151.43,2.74029104]
[1749438760015,6.11243338,151.48,151.47,2.74029104]
[1749438760216,8.42173338,151.49,151.47,2.74029104]
[1749438761215,2.3093,151.49,151.47,2.74029104]
[1749438761519,8.42173338,151.49,151.47,2.74029104]
[1749438761815,2.3093,151.49,151.47,2.74029104]
[1749438763310,2.3093,151.49,151.47,9.33879104]
[1749438764217,12.75442173,151.5,151.47,9.33879104]
[1749438764421,0.04438835,151.5,151.48,6.5982]
[1749438764621,4.20278242,151.5,151.48,9.33849104]
[1749438764810,0.04438835,151.5,151.48,9.33849104]
[1749438766222,6.64178835,151.5,151.48,2.74029104]
[1749438767222,6.64178835,151.5,151.47,9.33879104]
[1749438767617,6.64178835,151.5,151.47,2.74029104]
[1749438768526,6.64178835,151.5,151.47,9.33889104]
[1749438769420,0.04438835,151.5,151.48,2.74029104]
[1749438769626,0.04438835,151.5,151.48,9.33839104]
[1749438770720,6.64188835,151.5,151.48,2.74029104]
[1749438772019,12.14927827,151.5,151.48,2.74029104]
[1749438772217,6.64188835,151.5,151.48,2.74029104]
[1749438772725,6.64188835,151.5,151.48,9.33849104]
[1749438773026,0.04438835,151.5,151.48,9.33849104]
[1749438773231,0.04438835,151.5,151.49,2.74029104]
[1749438773427,0.04438835,151.5,151.49,9.33809104]
[1749438774431,0.04438835,151.5,151.49,2.74029104]
[1749438779238,6.64178835,151.5,151.49,2.74029104]
[1749438779733,0.04438835,151.5,151.49,2.74029104]
[1749438780234,0.04438835,151.5,151.46,0.04911195]
[1749438780433,8.2890262,151.5,151.47,2.74029104]
[1749438780635,6.5984,151.48,151.47,2.74029104]
[1749438781627,6.5987,151.47,151.46,0.04911195]
[1749438783140,12.09533888,151.47,151.46,0.04911195]
[1749438783735,6.5984,151.48,151.46,2.78940299]
[1749438784237,12.09346932,151.48,151.46,2.78940299]
[1749438784439,6.5984,151.48,151.46,2.78940299]
[1749438785241,6.5987,151.47,151.46,2.78940299]
[1749438785640,6.5985,151.48,151.46,2.78940299]
[1749438785839,12.09444408,151.48,151.46,2.78940299]
[1749438787738,12.09444408,151.48,151.47,2.74029104]
[1749438787739,5.49594408,151.48,151.47,2.74029104]
[1749438787934,6.598,151.49,151.47,2.74029104]
[1749438788140,6.598,151.49,151.48,2.74029104]